bitfinex-derivatives/quotes_ETHF0:USTF0_20260121
["timestamp","ask_amount","ask_price","bid_price","bid_amount"]
[1769027061049,0.45283817,3016.8,3014.8,5.24808126]
[1769027061245,0.45283817,3016.8,3014.9,3.46840965]
[1769027061449,0.45283817,3016.8,3015.0,3.46840965]
[1769027061651,0.16582,3017.8,3016.2,3.46840965]
[1769027061850,0.16579,3018.4,3016.2,3.46840965]
[1769027062151,3.40065704,3018.2,3015.8,1.77967161]
[1769027062348,0.16582,3017.8,3015.8,3.46840965]
[1769027062551,0.16830709,3017.8,3015.8,3.46840965]
[1769027062947,0.16830709,3017.8,3015.3,2.47595]
[1769027062948,3.40065704,3017.7,3015.4,1.77967161]
[1769027063157,0.16586,3017.1,3015.3,3.46840965]
[1769027064247,0.16830709,3017.8,3015.3,3.63435965]
[1769027064565,0.16830709,3017.8,3015.4,3.63435965]
[1769027064950,3.56896413,3017.8,3015.4,3.63435965]
[1769027065560,0.16583,3017.7,3015.4,3.63435965]
[1769027065952,3.56649704,3017.4,3015.4,3.46840965]
[1769027066152,3.40065704,3017.4,3015.4,3.46840965]
[1769027066353,3.40065704,3017.4,3014.9,4.86005001]
[1769027066553,3.40065704,3017.4,3015.0,3.46840965]
[1769027066554,0.16586,3017.1,3015.0,3.46840965]
[1769027067255,0.00248709,3017.8,3016.2,3.46840965]
[1769027068454,0.00248709,3017.8,3016.3,3.46840965]
[1769027069253,0.16578,3018.5,3016.7,4.85744244]
[1769027069460,0.16578,3018.5,3016.8,3.46840965]
[1769027069961,3.40065704,3018.9,3016.8,3.46840965]
[1769027069962,0.16579,3018.4,3016.8,3.46840965]
[1769027070163,0.16815495,3018.4,3016.8,3.46840965]
[1769027070455,0.00236495,3018.4,3016.8,3.46840965]
[1769027073452,0.00236495,3018.4,3016.8,5.94427965]
[1769027073655,0.00236495,3018.4,3016.9,3.46840965]
[1769027074057,0.00236495,3018.4,3017.0,3.46840965]
[1769027074259,3.40302199,3018.4,3016.5,3.46840965]
[1769027074457,0.1658,3018.2,3016.5,3.46840965]
[1769027074655,3.40302199,3018.4,3016.5,3.46840965]
[1769027075458,0.00236495,3018.4,3016.5,3.46840965]
[1769027075864,0.00236495,3018.4,3016.7,3.46840965]
[1769027078461,3.56881199,3018.4,3016.1,1.38903279]
[1769027078762,3.40302199,3018.4,3016.2,3.46840965]
[1769027079357,0.1658,3018.1,3016.2,3.46840965]
[1769027079762,0.00236495,3018.4,3016.2,3.63431965]
[1769027080259,3.40302199,3018.4,3016.2,3.46840965]
[1769027080466,0.16582,3017.9,3016.2,3.46840965]
[1769027081059,3.40302199,3018.4,3016.2,3.63431965]
[1769027081264,0.00236495,3018.4,3016.2,3.63431965]
[1769027082565,0.1658,3018.2,3016.2,3.63431965]
[1769027083560,0.00236495,3018.4,3016.1,1.38903279]
[1769027083561,0.00236495,3018.4,3016.4,3.63430965]
[1769027084564,0.00236495,3018.4,3016.4,3.46840965]
[1769027084869,0.16581,3018.0,3016.4,3.46840965]
[1769027085862,3.40302199,3018.4,3016.4,3.46840965]
[1769027086069,3.40302199,3018.4,3016.1,1.38903279]
[1769027086070,0.16585,3017.3,3015.9,3.57007745]
[1769027086766,0.16586,3017.1,3015.3,3.57007745]
[1769027087368,0.16586,3017.1,3015.4,3.57007745]
[1769027087563,0.16583,3017.7,3015.7,3.57007745]
[1769027088468,3.5779014,3018.1,3015.7,3.57007745]
[1769027088667,0.16586,3017.2,3015.7,3.57007745]
[1769027088860,0.16586,3017.2,3015.3,5.34974906]
[1769027089363,0.16586,3017.2,3015.4,5.34974906]
[1769027090170,0.16587,3016.9,3015.4,5.34974906]
[1769027090958,0.16587,3016.9,3015.5,3.57007745]
[1769027091163,0.16587,3016.9,3015.6,5.34974906]
[1769027091360,0.16584,3017.6,3015.7,3.57007745]
[1769027091769,0.16584,3017.6,3015.8,5.34974906]
[1769027091969,0.16584,3017.6,3016.0,3.57007745]
[1769027092167,0.1658,3018.2,3016.3,3.57007745]
[1769027092372,0.1658,3018.2,3016.4,3.57007745]
[1769027092872,0.1658,3018.2,3016.4,5.34974906]
[1769027093174,0.1658,3018.2,3016.7,3.57007745]
[1769027094374,0.1658,3018.1,3016.7,3.57007745]
[1769027095073,0.00236495,3018.4,3016.7,3.57007745]
[1769027095074,0.16581,3018.0,3016.7,3.57007745]
[1769027095266,0.16582,3017.8,3016.4,1.77967161]
[1769027095572,0.16582,3017.8,3016.2,7.66974906]
[1769027095768,0.16582,3017.8,3016.3,3.57007745]
[1769027096374,0.16582,3017.8,3016.3,5.34974906]
[1769027096570,0.16583,3017.7,3016.3,3.57007745]
[1769027097673,0.16583,3017.6,3016.3,3.57007745]
[1769027097870,0.16583,3017.6,3016.0,1.77967161]
[1769027097871,0.16583,3017.6,3015.9,5.34974906]
[1769027098076,0.16584,3017.5,3015.9,3.57007745]
[1769027098373,3.5779014,3017.6,3015.7,1.77967161]
[1769027098570,3.5779014,3017.6,3015.6,1.77967161]
[1769027099271,0.16586,3017.1,3015.6,1.77967161]
[1769027099472,0.16586,3017.0,3015.6,1.77967161]
[1769027099678,0.16587,3016.9,3015.5,1.77967161]
[1769027100272,0.16588,3016.7,3015.1,1.77967161]
[1769027100476,0.16588,3016.7,3015.2,5.24764019]
[1769027100677,0.16585,3017.3,3015.6,3.46796858]
[1769027101073,0.16586,3017.1,3015.6,3.46796858]
[1769027101274,0.75935663,3017.0,3015.0,5.24764019]
[1769027101575,4.20882118,3016.9,3015.1,3.46796858]
[1769027101777,4.20882118,3016.9,3014.5,2.3451738]
[1769027101778,3.44915975,3016.5,3014.6,3.46796858]
[1769027101974,0.16593,3015.8,3014.2,1.77967161]
[1769027102170,0.16859859,3015.8,3014.2,1.77967161]
[1769027102371,0.16595,3015.5,3014.1,5.24764019]
[1769027102676,0.16598,3014.9,3013.4,1.77967161]
[1769027102883,0.16598,3014.9,3013.3,1.77967161]
[1769027103075,0.16599,3014.8,3013.3,1.77967161]
[1769027103273,0.16599,3014.8,3013.1,3.46796858]
[1769027103472,0.16599,3014.8,3013.1,3.4716555]
[1769027103778,0.16602,3014.2,3013.1,0.00368692]
[1769027104979,3.44915975,3015.4,3013.1,0.00368692]
[1769027105178,3.44915975,3015.4,3013.1,3.4716555]
[1769027105179,0.16599,3014.8,3013.1,3.4716555]
[1769027105776,0.166,3014.6,3013.1,0.00368692]
[1769027106277,0.166,3014.6,3013.1,3.4716555]
[1769027107179,0.166,3014.5,3013.1,3.4716555]
[1769027107372,3.44915975,3015.0,3013.1,0.00368692]
[1769027108375,3.44915975,3015.0,3013.1,3.4716555]
[1769027108681,0.166,3014.6,3013.1,3.4716555]
[1769027108873,0.166,3014.5,3013.1,3.4716555]
[1769027110786,0.26928967,3015.5,3013.1,3.4716555]
[1769027110787,0.16597,3015.2,3013.1,3.4716555]
[1769027111285,0.16597,3015.1,3013.1,3.4716555]
[1769027111787,0.16597,3015.1,3013.5,3.46796858]
[1769027112181,0.16859859,3015.8,3013.5,3.46796858]
[1769027112386,0.16594,3015.7,3013.5,3.46796858]
[1769027112584,0.16594,3015.6,3013.5,3.46796858]
[1769027112787,0.16595,3015.5,3013.5,3.46796858]
[1769027112991,3.7174856,3015.7,3013.5,3.46796858]
[1769027113283,3.7174856,3015.7,3013.1,0.00368692]
[1769027113284,0.16601,3014.4,3013.1,0.00368692]
[1769027113588,3.44915975,3014.8,3013.1,0.00368692]
[1769027113984,0.16603,3014.0,3013.1,0.00368692]
[1769027115577,3.44915975,3014.8,3013.1,0.00368692]
[1769027115985,0.16605,3013.7,3013.1,0.00368692]
[1769027117385,0.16605,3013.7,3011.4,1.845]
[1769027117386,0.16606,3013.4,3011.0,3.69711132]
[1769027117688,0.16612,3012.4,3011.0,3.69711132]
[1769027118486,0.16953147,3012.4,3011.0,3.70007632]
[1769027118885,3.46635489,3013.3,3011.0,3.70007632]
[1769027119087,0.1661,3012.7,3011.0,3.70007632]
[1769027119691,0.16611,3012.5,3011.0,3.70007632]
[1769027119895,0.0024808,3012.5,3011.0,3.70007632]
[1769027120386,0.16616,3011.7,3011.0,0.002965]
[1769027123491,3.46883569,3012.5,3011.0,0.002965]
[1769027124291,0.16615,3011.8,3011.0,0.002965]
[1769027124992,3.46883569,3012.5,3011.0,0.002965]
[1769027125198,3.46635489,3012.3,3009.9,3.69711132]
[1769027125399,3.46635489,3012.1,3009.9,3.69711132]
[1769027125697,0.16618,3011.3,3009.9,3.69711132]
[1769027125891,3.46883569,3012.5,3010.4,3.70007632]
[1769027126086,0.16617,3011.5,3010.4,3.70074468]
[1769027126289,3.46883569,3012.5,3010.4,0.00363336]
[1769027126490,0.16622,3010.7,3009.4,3.69711132]
[1769027126690,0.16622,3010.6,3009.4,3.69711132]
[1769027127090,0.16622,3010.6,3009.8,0.002965]
[1769027127498,0.16622,3010.6,3010.0,0.002965]
[1769027127800,0.16619,3011.1,3010.0,0.002965]
[1769027127996,0.16619,3011.1,3009.8,3.6995806]
[1769027128196,3.46635489,3012.4,3010.1,3.69711132]
[1769027128600,0.16617,3011.5,3010.1,3.69711132]
[1769027128994,0.16617,3011.5,3010.4,0.002965]
[1769027129393,0.16617,3011.5,3010.5,0.002965]
[1769027129591,0.16617,3011.5,3010.6,0.002965]
[1769027129895,3.46635489,3011.9,3010.3,0.002965]
[1769027130095,0.16619,3011.1,3009.8,0.00246928]
[1769027130599,0.16619,3011.1,3010.2,0.002965]
[1769027130799,0.16622,3010.6,3009.8,0.00246928]
[1769027130997,0.16622,3010.5,3009.8,0.00246928]
[1769027131392,0.16622,3010.5,3010.0,0.002965]
[1769027131594,0.16622,3010.5,3009.9,0.002965]
[1769027132004,0.16622,3010.5,3010.0,0.002965]
[1769027132303,0.16622,3010.5,3009.8,0.00246928]
[1769027132796,3.46635489,3011.0,3009.8,0.00246928]
[1769027133190,0.16623,3010.3,3009.8,0.00246928]
[1769027133390,0.16876161,3010.3,3009.8,0.00246928]
[1769027133595,0.16876161,3010.3,3009.1,3.69711132]
[1769027134292,0.00253161,3010.3,3009.1,3.69711132]
[1769027134807,0.00253161,3010.3,3009.1,3.70036419]
[1769027135002,0.16621,3010.8,3009.1,3.70036419]
[1769027136201,0.16622,3010.6,3009.1,3.70036419]
[1769027136708,0.16622,3010.6,3009.1,6.02136419]
[1769027136903,0.16622,3010.5,3009.1,3.70036419]
[1769027137111,0.16623,3010.4,3009.1,3.70036419]
[1769027138209,0.00408278,3010.8,3009.1,3.70036419]
[1769027138412,0.16622,3010.6,3009.1,3.70036419]
[1769027139315,0.16622,3010.6,3009.1,6.02236419]
[1769027139508,0.16622,3010.5,3009.1,3.70036419]
[1769027139713,0.16622,3010.5,3009.1,6.02236419]
[1769027140217,0.16623,3010.4,3009.1,6.02236419]
[1769027140416,0.16623,3010.3,3009.1,3.70036419]
[1769027140614,3.46635489,3010.7,3009.1,0.00325287]
[1769027140817,3.46635489,3010.5,3009.1,0.00325287]
[1769027141418,0.16626,3009.9,3009.1,0.00325287]
[1769027141717,3.46635489,3010.5,3009.1,3.70036419]
[1769027141718,0.16622,3010.5,3009.1,3.70036419]
[1769027142720,0.00408278,3010.8,3009.1,3.70036419]
[1769027143111,0.16619,3011.1,3009.1,3.70036419]
[1769027143315,0.1662,3011.0,3009.3,3.69711132]
[1769027143516,0.1662,3011.0,3009.4,6.01911132]
[1769027143731,0.1662,3011.0,3009.5,3.69711132]
[1769027144118,0.1692455,3011.0,3009.5,3.69711132]
[1769027145026,0.0030455,3011.0,3009.5,3.69711132]
[1769027145228,0.0030455,3011.0,3009.6,2.323]
[1769027145427,0.0030455,3011.0,3009.6,3.69711132]
[1769027146827,0.16616,3011.7,3009.7,1.77967161]
[1769027147020,0.16616,3011.7,3009.8,3.69593447]
[1769027147222,0.16616,3011.7,3009.9,1.77967161]
[1769027147420,0.16616,3011.7,3010.0,3.52967447]
[1769027147826,0.16852449,3011.7,3010.1,2.324]
[1769027148021,0.16852449,3011.7,3010.2,3.52967447]
[1769027148423,0.00236449,3011.7,3010.3,3.52967447]
[1769027149420,0.00236449,3011.7,3010.4,3.52967447]
[1769027150025,0.00236449,3011.7,3010.1,1.77967161]
[1769027150227,0.16617,3011.4,3010.0,2.326]
[1769027150822,0.16617,3011.4,3010.1,3.52967447]
[1769027151323,0.16619,3011.1,3009.8,1.77967161]
[1769027151525,0.16619,3011.1,3009.6,3.52967447]
[1769027151931,0.16619,3011.1,3009.7,3.52967447]
[1769027152127,0.00236449,3011.7,3009.8,3.52967447]
[1769027152432,0.16617,3011.5,3009.8,3.52967447]
[1769027152826,0.16619,3011.1,3009.8,3.52967447]
[1769027153125,0.1662,3011.0,3009.6,1.77967161]
[1769027154031,3.4163627,3011.7,3009.6,1.77967161]
[1769027154229,0.16622,3010.6,3009.3,5.30934608]
[1769027154528,3.41399821,3010.8,3009.1,0.00325287]
[1769027154832,0.16624,3010.2,3009.1,3.53292734]
[1769027155032,0.16624,3010.2,3009.1,5.31259895]
[1769027155234,0.16624,3010.2,3009.1,3.53292734]
[1769027155434,0.16624,3010.2,3009.1,0.00325287]
[1769027157533,3.41399821,3010.7,3009.1,0.00325287]
[1769027157730,0.16625,3010.0,3009.1,0.00325287]
[1769027159632,3.56293,3010.6,3009.1,0.00325287]
[1769027159840,0.16621,3010.7,3009.1,5.17026803]
[1769027160335,0.16621,3010.7,3009.2,3.38734355]
[1769027161333,3.56293,3011.0,3009.1,0.00325287]
[1769027161535,0.16622,3010.6,3009.1,0.00325287]
[1769027162239,0.16622,3010.6,3009.1,5.17026803]
[1769027162534,0.16624,3010.2,3009.1,1.78292448]
[1769027162734,3.56293,3010.6,3009.1,0.00325287]
[1769027162931,0.16625,3010.0,3009.1,0.00325287]
[1769027167441,0.16623,3010.4,3009.1,0.00325287]
[1769027167940,0.00236449,3011.7,3009.1,0.00325287]
[1769027167941,3.56293,3010.3,3009.1,0.00325287]
[1769027168142,0.16625,3010.0,3009.1,0.00325287]
[1769027168846,0.16626,3009.9,3009.1,0.00325287]
[1769027169141,3.56293,3010.3,3009.1,0.00325287]
[1769027169336,3.56293,3010.3,3008.2,1.77967161]
[1769027169337,3.56293,3009.9,3008.2,1.77967161]
[1769027169536,3.56293,3009.3,3007.7,1.77967161]
[1769027169736,3.56293,3009.3,3007.3,9.90590428]
[1769027169737,3.56293,3009.3,3007.6,1.77967161]
[1769027169933,3.56293,3009.8,3007.6,3.38734355]
[1769027170139,0.16628,3009.4,3007.8,5.16701516]
[1769027170340,0.1705156,3009.4,3007.9,3.38734355]
[1769027170539,0.0042356,3009.4,3007.9,3.38734355]
[1769027170742,0.0042356,3009.4,3008.1,3.38734355]
[1769027171238,0.0042356,3009.4,3008.2,3.38734355]
[1769027171443,0.16629,3009.3,3007.9,1.77967161]
[1769027172338,0.0042356,3009.4,3007.9,1.77967161]
[1769027172539,0.0042356,3009.4,3007.9,5.16701516]
[1769027172741,2.92631659,3011.2,3007.9,5.16701516]
[1769027172742,0.16617,3011.5,3009.0,3.38734355]
[1769027172942,6.13624536,3012.9,3009.0,3.38734355]
[1769027172943,3.56293,3012.8,3010.3,3.38734355]
[1769027173141,3.56293,3012.6,3010.3,5.17113535]
[1769027173340,0.16614,3011.9,3010.3,3.38734355]
[1769027173535,3.56293,3012.4,3010.3,3.38734355]
[1769027173744,3.56579596,3012.4,3010.6,1.18853855]
[1769027173940,0.00286596,3012.4,3010.8,3.38734355]
[1769027174142,0.00286596,3012.4,3011.2,1.18853855]
[1769027174437,0.00286596,3012.4,3011.0,1.18853855]
[1769027174638,0.00286596,3012.4,3010.8,1.18853855]
[1769027174639,3.56579596,3012.4,3010.8,1.18853855]
[1769027174837,3.56579596,3012.4,3010.5,1.18853855]
[1769027175142,0.16615,3011.8,3010.3,0.00286453]
[1769027175542,0.16616,3011.6,3010.3,0.00286453]
[1769027175741,3.69244008,3011.6,3010.3,0.00286453]
[1769027176140,0.00286596,3012.4,3010.3,0.00286453]
[1769027176141,0.00286596,3012.4,3010.3,3.6988881]
[1769027176340,0.16601,3014.3,3011.4,4.88456212]
[1769027176645,0.16602,3014.2,3011.6,4.88456212]
[1769027176844,0.16602,3014.2,3011.7,3.69602357]
[1769027177147,0.28608303,3014.3,3012.1,3.69602357]
[1769027177447,1.85184597,3014.3,3012.1,3.69602357]
[1769027177943,0.00384597,3014.3,3012.1,3.69602357]
[1769027179150,2.09784597,3014.3,3012.1,3.69602357]
[1769027179743,3.42936045,3016.6,3012.1,3.69602357]
[1769027179944,3.42936045,3016.6,3014.3,5.08606827]
[1769027180247,3.42936045,3016.3,3013.2,0.28088887]
[1769027180447,3.42936045,3016.1,3013.2,0.16607]
[1769027180747,3.47762723,3015.9,3013.2,0.16873356]
[1769027180944,3.47762723,3015.7,3013.2,0.16873356]
[1769027181547,3.47762723,3015.4,3013.2,0.00266356]
[1769027181851,1.847,3015.3,3013.2,0.00266356]
[1769027182051,2.093,3015.2,3013.2,0.00266356]
[1769027182245,2.093,3015.2,3013.2,3.69868713]
[1769027183050,2.094,3015.2,3013.2,3.69868713]
[1769027183248,3.45246719,3015.1,3013.2,0.00266356]
[1769027183449,1.847,3015.0,3013.2,0.00266356]
[1769027186154,5.26911029,3015.0,3013.2,0.00266356]
[1769027186346,0.16598,3014.9,3013.2,0.00266356]
[1769027187252,0.16598,3014.9,3012.5,1.3900447]
[1769027187253,0.16601,3014.4,3012.1,3.69602357]
[1769027187644,1.846,3014.3,3012.1,3.69602357]
[1769027188249,1.846,3014.3,3012.1,3.69964491]
[1769027188850,0.16603,3014.0,3012.1,3.69964491]
[1769027189358,2.094,3013.9,3012.1,3.69964491]
[1769027189550,2.09821827,3013.9,3012.1,3.69964491]
[1769027190051,0.00421827,3013.9,3012.1,3.69964491]
[1769027190649,0.17024827,3013.9,3012.1,3.69964491]
[1769027191551,0.16607,3013.3,3012.1,0.00362134]
[1769027194357,0.16607,3013.2,3012.1,0.00362134]
[1769027195953,0.16605,3013.7,3012.1,3.69964491]
[1769027199056,0.00421827,3013.9,3012.3,3.69602357]
[1769027199559,0.16605,3013.6,3012.1,3.69964491]
[1769027199856,2.25505,3013.6,3012.1,3.69964491]
[1769027201554,2.25305,3013.6,3012.1,3.69964491]
[1769027202362,2.25305,3013.6,3012.1,4.88818346]
[1769027202657,0.16608,3013.1,3012.1,0.00362134]
[1769027204057,0.16608,3013.1,3012.1,3.69964491]
[1769027205157,0.16608,3013.1,3012.1,0.00362134]
[1769027205656,0.16609,3012.9,3012.1,0.00362134]
[1769027205851,0.16609,3012.9,3011.8,1.18853855]
[1769027205852,3.35129443,3013.4,3011.5,1.18853855]
[1769027206053,0.16612,3012.3,3011.1,1.18853855]
[1769027206255,0.16615,3011.9,3010.9,1.18853855]
[1769027206557,0.16615,3011.9,3010.6,4.81353143]
[1769027206756,0.16616,3011.6,3010.6,1.18853855]
[1769027206955,0.16978417,3011.6,3010.6,0.00311289]
[1769027207360,0.16617,3011.5,3010.6,0.00311289]
[1769027208264,0.00362417,3011.6,3010.6,3.62810577]
[1769027208463,0.00362417,3011.6,3010.6,4.81664432]
[1769027208668,2.25013,3012.2,3010.7,3.62499288]
[1769027208968,0.16614,3012.0,3010.7,3.62499288]
[1769027209464,0.16611,3012.6,3011.1,3.62499288]
[1769027209765,0.16613,3012.2,3010.8,1.18853855]
[1769027209971,0.16614,3011.9,3010.6,0.00311289]
[1769027210771,0.16614,3011.9,3010.6,3.62810577]
[1769027211465,2.24812,3012.3,3010.7,3.62499288]
[1769027211772,0.16613,3012.2,3010.7,3.62499288]
[1769027211970,0.16615,3011.9,3010.7,3.62499288]
[1769027213473,0.16615,3011.9,3010.8,3.62499288]
[1769027215972,0.16615,3011.9,3010.6,1.19165144]
[1769027216471,0.16615,3011.9,3010.7,3.62499288]
[1769027216671,0.16615,3011.9,3010.8,3.62499288]
[1769027217775,0.16615,3011.8,3010.8,3.62499288]
[1769027217982,0.16615,3011.8,3010.6,0.00311289]
[1769027219882,0.16616,3011.7,3010.6,0.00311289]
[1769027220084,0.16616,3011.6,3010.6,0.00311289]
[1769027220282,2.077,3012.2,3010.6,0.00311289]
[1769027220283,0.16617,3011.4,3010.6,0.00311289]
[1769027220684,0.16618,3011.3,3010.6,0.00311289]
[1769027221482,3.38208981,3011.5,3009.3,1.18853855]
[1769027221681,3.38208981,3011.8,3009.4,3.53314708]
[1769027221981,0.16618,3011.3,3009.7,3.53314708]
[1769027222183,0.16614,3011.9,3010.1,3.53314708]
[1769027222384,0.16614,3011.9,3010.2,3.53314708]
[1769027222583,0.16614,3011.9,3010.2,4.72168563]
[1769027222888,0.16614,3011.9,3010.3,3.53314708]
[1769027223092,0.16612,3012.4,3010.3,3.53314708]
[1769027223282,0.16612,3012.4,3010.7,3.53314708]
[1769027223583,0.00424592,3012.6,3010.9,3.53314708]
[1769027223792,0.00424592,3012.6,3011.0,3.53314708]
[1769027223988,0.00424592,3012.6,3011.2,3.53314708]
[1769027224481,0.00424592,3012.6,3011.2,6.11173033]
[1769027224688,0.00424592,3012.6,3011.4,3.53314708]
[1769027225890,0.16605,3013.6,3011.4,4.72168563]
[1769027226090,0.16606,3013.5,3011.5,3.53314708]
[1769027226286,0.16607,3013.4,3011.5,3.53314708]
[1769027226887,0.00247562,3013.4,3011.9,3.53314708]
[1769027227386,0.16607,3013.3,3011.9,3.53314708]
[1769027228184,0.00247562,3013.4,3011.9,3.53314708]
[1769027228384,0.16608,3013.1,3011.9,3.53314708]
[1769027233096,0.00247562,3013.4,3011.9,3.53314708]
[1769027233793,3.40216699,3013.4,3011.6,1.18853855]
[1769027234096,3.40216699,3013.4,3011.2,3.53314708]
[1769027234097,0.16612,3012.4,3011.2,4.72168563]
[1769027234390,0.16612,3012.4,3011.2,3.53314708]
[1769027234587,3.39969137,3013.0,3010.9,1.18853855]
[1769027234795,0.16614,3012.1,3010.8,1.18853855]
[1769027234993,0.00247562,3013.4,3010.8,1.18853855]
[1769027234994,2.062,3012.8,3011.1,3.53314708]
[1769027235194,0.16613,3012.3,3011.1,3.53314708]
[1769027236197,0.16613,3012.3,3011.1,4.72168563]
[1769027236396,0.16613,3012.3,3011.1,3.53314708]
[1769027236988,0.16609,3013.0,3011.1,4.72168563]
[1769027237190,0.16609,3013.0,3011.5,3.62848545]
[1769027237394,0.16609,3013.0,3011.6,3.62848545]
[1769027237590,0.16609,3012.9,3011.6,3.62848545]
[1769027238999,2.06147562,3013.4,3011.6,1.18853855]
[1769027239201,0.16613,3012.2,3011.2,4.817024]
[1769027239502,3.39981083,3013.1,3011.0,1.18853855]
[1769027239707,0.16614,3012.1,3011.0,1.18853855]
[1769027240001,3.39981083,3013.1,3010.7,5.41227725]
[1769027240200,3.39981083,3012.7,3010.5,1.7837918]
[1769027240400,3.39981083,3012.5,3010.2,3.62848545]
[1769027240596,0.1662,3011.0,3010.2,3.62848545]
[1769027240797,0.16941541,3011.0,3010.2,3.62848545]
[1769027241295,0.16941541,3011.0,3010.1,0.00338189]
[1769027244807,0.16941541,3011.0,3010.1,3.63186734]
[1769027247406,0.16616,3011.6,3010.1,3.63186734]
[1769027247804,0.16617,3011.5,3010.1,3.63186734]
[1769027248311,0.16613,3012.1,3010.2,1.7837918]
[1769027248513,0.16613,3012.1,3010.4,3.62848545]
[1769027248712,0.16613,3012.1,3010.5,3.62848545]
[1769027248908,0.16928598,3012.1,3010.5,3.62848545]
[1769027249109,0.16616,3011.7,3010.5,3.62848545]
[1769027250014,0.00315598,3012.1,3010.1,0.00338189]
[1769027250210,0.16618,3011.4,3010.1,3.63186734]
[1769027251516,0.1662,3011.0,3010.1,3.63186734]
[1769027251716,0.1662,3011.0,3010.1,0.00338189]
[1769027252311,3.39481922,3011.9,3010.1,0.00338189]
[1769027252510,0.74910368,3011.8,3010.1,0.00338189]
[1769027252708,0.16621,3010.8,3010.1,0.00338189]
[1769027253112,0.16622,3010.5,3010.1,0.00338189]
[1769027253416,2.047,3011.7,3010.1,0.00338189]
[1769027253714,0.1662,3011.0,3010.1,0.00338189]
[1769027254311,0.27539035,3011.1,3010.1,0.00338189]
[1769027254515,3.3885877,3011.4,3009.5,3.62848545]
[1769027255517,3.6689078,3011.4,3009.5,3.63254296]
[1769027256517,0.16623,3010.4,3009.5,3.63254296]
[1769027257719,0.16623,3010.3,3009.5,3.63254296]
[1769027258422,0.16624,3010.2,3009.5,0.00405751]
[1769027259417,0.2803201,3011.4,3009.5,3.63254296]
[1769027259614,5.34046672,3011.5,3009.5,3.63254296]
[1769027259812,4.24061916,3011.4,3009.5,0.00405751]
[1769027260016,0.16624,3010.2,3009.5,0.00405751]
[1769027261126,0.16627,3009.6,3008.5,3.62848545]
[1769027261827,0.16626,3009.9,3008.5,3.62848545]
[1769027262029,3.49346672,3012.3,3009.2,3.79477545]
[1769027262213,0.16617,3011.4,3009.5,3.62848545]
[1769027262522,0.28092555,3012.3,3009.0,1.39116682]
[1769027262523,0.16614,3012.0,3010.0,3.62848545]
[1769027262915,0.16614,3012.0,3010.1,3.62848545]
[1769027263113,0.17002626,3012.0,3010.2,3.62848545]
[1769027263312,0.17002626,3012.0,3010.3,3.62848545]
[1769027263517,0.17002626,3012.0,3009.4,2.69695193]
[1769027263518,0.1661,3012.7,3010.5,3.62848545]
[1769027263714,0.1661,3012.7,3010.8,1.7837918]
[1769027263927,0.1661,3012.7,3010.9,3.62848545]
[1769027264522,0.16956284,3012.7,3010.9,3.63128137]
[1769027264713,0.16956284,3012.7,3011.0,3.62848545]
[1769027266225,0.16611,3012.6,3011.0,3.62848545]
[1769027268431,0.16612,3012.3,3011.0,3.62848545]
[1769027268826,0.00346284,3012.7,3011.0,3.62848545]
[1769027269128,0.00346284,3012.7,3011.2,3.38547878]
[1769027269424,27.98916682,3014.7,3011.2,3.38547878]
[1769027269425,0.16604,3013.8,3011.5,5.16927058]
[1769027269624,0.16604,3013.8,3011.9,1.7837918]
[1769027269926,0.16599,3014.7,3012.0,3.38547878]
[1769027270221,0.16599,3014.7,3011.7,0.16615]
[1769027270222,0.45229937,3014.7,3012.3,3.38547878]
[1769027270527,0.45477102,3014.7,3012.3,3.38547878]
[1769027270724,0.16846165,3014.7,3012.6,1.18531927]
[1769027271030,0.28658514,3014.7,3012.7,3.38547878]
[1769027271721,3.55117003,3014.5,3011.7,3.38547878]
[1769027271922,0.16605,3013.6,3011.7,3.38547878]
[1769027272125,3.55117003,3014.3,3011.7,3.38547878]
[1769027272324,0.28658514,3014.7,3011.7,3.38547878]
[1769027272325,3.55117003,3014.1,3011.7,3.38547878]
[1769027272630,0.16607,3013.3,3011.7,3.38547878]
[1769027277331,0.16603,3014.0,3011.7,3.38547878]
[1769027277531,0.16603,3014.0,3011.9,3.55161878]
[1769027277739,0.28658514,3014.7,3012.1,3.55160878]
[1769027277938,0.166,3014.5,3012.1,3.55160878]
[1769027278141,0.166,3014.5,3012.3,3.38547878]
[1769027278942,0.166,3014.5,3012.3,3.55159878]
[1769027280035,0.28658514,3014.7,3012.3,3.38547878]
[1769027280238,0.16603,3014.0,3012.3,3.38547878]
[1769027280937,0.16606,3013.4,3011.8,3.44893619]
[1769027281140,0.16611,3012.6,3011.1,3.44893619]
[1769027281540,0.16613,3012.3,3011.1,3.44893619]
[1769027281841,0.16903606,3012.3,3011.1,3.44893619]
[1769027282139,0.16613,3012.2,3011.1,3.44893619]
[1769027282335,0.00290606,3012.3,3010.9,0.00279592]
[1769027282336,0.16614,3012.0,3010.9,0.00279592]
[1769027282540,0.16614,3012.0,3010.9,3.45173211]
[1769027282840,0.00290606,3012.3,3010.9,0.00279592]
[1769027283027,3.43546699,3012.3,3009.5,3.44893619]
[1769027283233,0.16617,3011.5,3009.5,3.44893619]
[1769027283439,0.16617,3011.4,3009.5,3.44893619]
[1769027283636,0.1662,3011.0,3009.5,3.44893619]
[1769027284041,0.16902606,3012.3,3009.7,3.44893619]
[1769027284241,0.16902606,3012.3,3010.2,3.44893619]
[1769027284638,0.16613,3012.2,3010.2,3.44893619]
[1769027285143,0.00290606,3012.3,3010.3,5.23272799]
[1769027285440,0.16609,3013.0,3010.2,0.16623]
[1769027285441,0.16609,3013.0,3011.0,3.44893619]
[1769027285650,0.27372055,3013.5,3011.0,3.61512619]
[1769027285842,0.16606,3013.4,3011.1,3.44893619]
[1769027286443,0.16967927,3013.4,3011.3,3.44893619]
[1769027286742,0.16967927,3013.4,3010.9,3.73634062]
[1769027286743,0.00361927,3013.4,3011.5,3.44893619]
[1769027287137,0.00361927,3013.4,3011.5,3.61510619]
[1769027287343,0.00361927,3013.4,3011.7,3.44893619]
[1769027287536,0.00361927,3013.4,3011.7,3.45324505]
[1769027288643,0.16608,3013.1,3011.7,3.45324505]
[1769027290839,0.00361927,3013.4,3011.7,3.45324505]
[1769027291240,0.00361927,3013.4,3011.8,5.23272799]
[1769027291446,0.00361927,3013.4,3011.9,3.44893619]
[1769027292341,0.00361927,3013.4,3012.0,3.44893619]
[1769027293744,0.16607,3013.3,3012.0,3.44893619]
[1769027295246,0.00361927,3013.4,3012.2,3.44893619]
[1769027295538,0.16603,3014.0,3012.2,3.44893619]
[1769027295739,0.16603,3014.0,3012.3,3.66915768]
[1769027296046,0.27338828,3014.2,3012.3,3.66915768]